[Event "AUT Bundesliga 2019-20"]
[Site "Linz"]
[Date "2019.10.10"]
[Round "1.7"]
[White "Schneider, Ilja"]
[Black "Menezes, Christoph"]
[Result "1-0"]
[ECO "A46"]
[WhiteElo "2494"]
[BlackElo "2423"]
[Annotator "ChessBase"]
[PlyCount "87"]
[EventDate "2019.10.10"]
[EventType "team-tourn"]
[EventCountry "AUT"]
[SourceTitle "playchess.com"]
[Source "ChessBase"]
[SourceQuality "1"]
[TimeControl "40/5400+30:1800+30"]

1. d4 {[%emt 0:00:11]} Nf6 {[%emt 0:00:00]} 2. Nf3 {[%emt 0:00:23]} d5 {[%emt 0:00:24]} 3. c4 {[%emt 0:00:49]} e6 {[%emt 0:00:25]} 4. e3 {[%emt 0:00:20]} a6 {[%emt 0:03:13]} 5. a3 {[%emt 0:02:34]} dxc4 {[%emt 0:06:31]} 6. Bxc4 {[%emt 0:00:16]} b5 {[%emt 0:01:12]} 7. Be2 {[%emt 0:00:36]} Bb7 {[%emt 0:05:04]} 8. O-O {[%emt 0:01:06]} c5 {[%emt 0:02:56]} 9. dxc5 {[%emt 0:12:38]} Qxd1 {[%emt 0:03:45]} 10. Rxd1 {[%emt 0:00:11]} Bxc5 {[%emt 0:00:07]} 11. Nbd2 {[%emt 0:00:12]} Nbd7 {[%emt 0:09:13]} 12. Nb3 {[%emt 0:02:48]} Be7 {[%emt 0:04:05]} 13. Bd2 {[%emt 0:05:15]} O-O {[%emt 0:02:21]} 14. Na5 {[%emt 0:02:44]} Bd5 {[%emt 0:01:40]} 15. Nd4 {[%emt 0:00:26]} Rfc8 {[%emt 0:12:13]} 16. Rac1 {[%emt 0:06:25]} Bc5 {[%emt 0:02:51]} 17. Ndb3 {[%emt 0:18:30]} Bb6 {[%emt 0:12:16]} 18. Kf1 {[%emt 0:01:34]} Ne4 {[%emt 0:05:27]} 19. Bb4 {[%emt 0:01:24]} f5 {[%emt 0:01:11]} 20. Nd4 {[%emt 0:04:08]} Rxc1 {[%emt 0:12:24]} 21. Rxc1 {[%emt 0:00:05]} f4 {[%emt 0:02:32]} 22. Nac6 {[%emt 0:04:57]} fxe3 {[%emt 0:01:34]} 23. Ne7+ {[%emt 0:03:40]} Kf7 {[%emt 0:03:16]} 24. Nxd5 {[%emt 0:00:40]} Bxd4 {[%emt 0:02:34]} 25. Nxe3 {[%emt 0:02:55]} Bxb2 {[%emt 0:02:14]} 26. Rc7 {[%emt 0:00:20]} Nef6 {[%emt 0:00:19]} 27. Bf3 {[%emt 0:03:18]} Rd8 {[%emt 0:00:28]} 28. Ra7 {[%emt 0:02:50]} Bd4 {[%emt 0:00:45]} 29. Rxa6 {[%emt 0:00:08]} Ne5 {[%emt 0:01:37]} 30. Be2 {[%emt 0:00:51]} Bxe3 {[%emt 0:01:12]} 31. fxe3 {[%emt 0:00:01]} Nd5 {[%emt 0:00:48]} 32. Bc5 {[%emt 0:02:28]} Nd7 {[%emt 0:00:48]} 33. Ra7 {[%emt 0:01:06]} Kg8 {[%emt 0:00:31]} 34. Bd4 {[%emt 0:01:04]} e5 {[%emt 0:00:26]} 35. Bf3 {[%emt 0:06:29]} N5f6 {[%emt 0:00:03]} 36. Bc3 {[%emt 0:00:55]} Rc8 {[%emt 0:00:51]} 37. Ra8 {[%emt 0:00:27]} Rxa8 {[%emt 0:00:16]} 38. Bxa8 {[%emt 0:00:01]} Ng4 {[%emt 0:00:55]} 39. Bc6 {[%emt 0:00:45]} Nc5 {[%emt 0:00:31]} 40. Ke2 {[%emt 0:00:00]} Nxh2 {[%emt 0:00:00]} 41. Bxe5 {[%emt 0:02:07]} Ng4 {[%emt 0:00:49]} 42. Bd6 {[%emt 0:01:24]} Na4 {[%emt 0:01:15]} 43. Kf3 {[%emt 0:03:28]} Nf6 {[%emt 0:02:58]} 44. Bxb5 {[%emt 0:00:13]} 1-0

[Event "AUT Bundesliga 2019-20"]
[Site "Linz"]
[Date "2019.10.10"]
[Round "1.8"]
[White "Banusz, Tamas"]
[Black "Skoberne, Jure"]
[Result "1-0"]
[ECO "E62"]
[WhiteElo "2619"]
[BlackElo "2567"]
[Annotator "ChessBase"]
[PlyCount "79"]
[EventDate "2019.10.10"]
[EventType "team-tourn"]
[EventCountry "AUT"]
[SourceTitle "playchess.com"]
[Source "ChessBase"]
[SourceQuality "1"]
[TimeControl "40/5400+30:1800+30"]

1. d4 {[%emt 0:00:00]} Nf6 {[%emt 0:00:41]} 2. Nf3 {[%emt 0:00:00]} g6 {[%emt 0:00:22]} 3. g3 {[%emt 0:00:11]} Bg7 {[%emt 0:00:20]} 4. Bg2 {[%emt 0:00:08]} O-O {[%emt 0:00:32]} 5. c4 {[%emt 0:00:13]} d6 {[%emt 0:00:06]} 6. Nc3 {[%emt 0:00:16]} Nc6 {[%emt 0:00:45]} 7. O-O {[%emt 0:00:21]} Bg4 {[%emt 0:02:44]} 8. d5 {[%emt 0:02:17]} Na5 {[%emt 0:08:35]} 9. Nd2 {[%emt 0:00:33]} c5 {[%emt 0:00:25]} 10. h3 {[%emt 0:08:21]} Bd7 {[%emt 0:00:43]} 11. Qc2 {[%emt 0:02:48]} e6 {[%emt 0:14:28]} 12. b3 {[%emt 0:12:01]} exd5 {[%emt 0:05:40]} 13. cxd5 {[%emt 0:00:07]} b5 {[%emt 0:00:31]} 14. Bb2 {[%emt 0:01:03]} Re8 {[%emt 0:21:03]} 15. Rfe1 {[%emt 0:04:57]} Rc8 {[%emt 0:01:32]} 16. Nce4 {[%emt 0:04:16]} Bf5 {[%emt 0:03:31]} 17. Nxf6+ {[%emt 0:03:53]} Bxf6 {[%emt 0:00:08]} 18. e4 {[%emt 0:01:04]} Bd7 {[%emt 0:00:16]} 19. Rac1 {[%emt 0:03:46]} c4 {[%emt 0:12:56]} 20. Bxf6 {[%emt 0:02:40]} Qxf6 {[%emt 0:00:06]} 21. b4 {[%emt 0:00:25]} Nb7 {[%emt 0:00:06]} 22. Nb1 {[%emt 0:14:38]} a5 {[%emt 0:00:36]} 23. a3 {[%emt 0:00:06]} axb4 {[%emt 0:00:17]} 24. axb4 {[%emt 0:00:04]} Ra8 {[%emt 0:00:30]} 25. Nc3 {[%emt 0:01:14]} Ra3 {[%emt 0:03:02]} 26. Qd2 {[%emt 0:04:29]} Rb3 {[%emt 0:02:26]} 27. f4 {[%emt 0:01:34]} Rxb4 {[%emt 0:02:58]} 28. e5 {[%emt 0:02:51]} dxe5 {[%emt 0:01:20]} 29. d6 {[%emt 0:05:25]} e4 {[%emt 0:01:40]} 30. Rxe4 {[%emt 0:12:19]} Rxe4 {[%emt 0:09:53]} 31. Nxe4 {[%emt 0:00:47]} Qb2 {[%emt 0:00:04]} 32. Rc2 {[%emt 0:03:46]} Qa1+ {[%emt 0:05:20]} 33. Kh2 {[%emt 0:00:12]} Ra4 {[%emt 0:00:13]} 34. Rc3 {[%emt 0:04:41]} Ra2 {[%emt 0:00:26]} 35. Nf6+ {[%emt 0:01:20]} Kg7 {[%emt 0:01:55]} 36. Qd4 {[%emt 0:00:08]} Rxg2+ {[%emt 0:01:02]} 37. Kxg2 {[%emt 0:00:07]} Bxh3+ {[%emt 0:00:44]} 38. Kh2 {[%emt 0:02:05]} Kh6 {[%emt 0:00:30]} 39. Ng8+ {[%emt 0:01:28]} Kh5 {[%emt 0:00:05]} 40. g4+ {[%emt 0:00:00]} 1-0

[Event "AUT Bundesliga 2019-20"]
[Site "Linz"]
[Date "2019.10.10"]
[Round "1.8"]
[White "Brkic, Ante"]
[Black "Svane, Rasmus"]
[Result "1/2-1/2"]
[ECO "C67"]
[WhiteElo "2600"]
[BlackElo "2592"]
[Annotator "ChessBase"]
[PlyCount "129"]
[EventDate "2019.10.10"]
[EventType "team-tourn"]
[EventCountry "AUT"]
[SourceTitle "playchess.com"]
[Source "ChessBase"]
[SourceQuality "1"]
[TimeControl "40/5400+30:1800+30"]

1. e4 {[%emt 0:00:00]} e5 {[%emt 0:00:00]} 2. Nf3 {[%emt 0:00:00]} Nc6 {[%emt 0:00:00]} 3. Bb5 {[%emt 0:00:40]} Nf6 {[%emt 0:00:00]} 4. O-O {[%emt 0:05:36]} Nxe4 {[%emt 0:00:00]} 5. d4 {[%emt 0:03:55]} Nd6 {[%emt 0:00:00]} 6. Bxc6 {[%emt 0:00:08]} dxc6 {[%emt 0:00:00]} 7. dxe5 {[%emt 0:00:04]} Nf5 {[%emt 0:00:04]} 8. Qxd8+ {[%emt 0:00:04]} Kxd8 {[%emt 0:00:07]} 9. Nc3 {[%emt 0:00:04]} Be7 {[%emt 0:01:43]} 10. h3 {[%emt 0:03:33]} Nh4 {[%emt 0:00:49]} 11. Nd4 {[%emt 0:03:19]} Nf5 {[%emt 0:01:24]} 12. Nf3 {[%emt 0:03:45]} Nh4 {[%emt 0:00:04]} 13. Nd4 {[%emt 0:02:07]} Nf5 {[%emt 0:00:05]} 14. Nde2 {[%emt 0:00:09]} b6 {[%emt 0:00:05]} 15. Bf4 {[%emt 0:03:48]} g5 {[%emt 0:06:54]} 16. Rad1+ {[%emt 0:03:04]} Ke8 {[%emt 0:03:46]} 17. Bc1 {[%emt 0:00:15]} h5 {[%emt 0:20:31]} 18. Ne4 {[%emt 0:03:39]} Rg8 {[%emt 0:01:04]} 19. f3 {[%emt 0:19:01]} Ba6 {[%emt 0:30:59]} 20. Rfe1 {[%emt 0:02:25]} Rd8 {[%emt 0:14:29]} 21. Rxd8+ {[%emt 0:00:43]} Bxd8 {[%emt 0:01:51]} 22. g4 {[%emt 0:18:10]} Bxe2 {[%emt 0:00:09]} 23. Rxe2 {[%emt 0:01:43]} Nd4 {[%emt 0:00:08]} 24. Rf2 {[%emt 0:00:04]} hxg4 {[%emt 0:00:10]} 25. fxg4 {[%emt 0:09:15]} Ne6 {[%emt 0:05:28]} 26. Be3 {[%emt 0:00:12]} Kf8 {[%emt 0:01:22]} 27. Rf5 {[%emt 0:04:20]} Ng7 {[%emt 0:01:56]} 28. Rf1 {[%emt 0:00:03]} Ne6 {[%emt 0:00:09]} 29. Nf6 {[%emt 0:06:00]} Rh8 {[%emt 0:02:17]} 30. Kg2 {[%emt 0:00:12]} Kg7 {[%emt 0:01:07]} 31. Ne4 {[%emt 0:01:47]} Kg6 {[%emt 0:00:42]} 32. Rd1 {[%emt 0:02:29]} Be7 {[%emt 0:01:24]} 33. Rd7 {[%emt 0:04:23]} Bf8 {[%emt 0:02:17]} 34. Nf2 {[%emt 0:01:07]} Bg7 {[%emt 0:01:01]} 35. Nd3 {[%emt 0:00:01]} Rc8 {[%emt 0:00:08]} 36. b4 {[%emt 0:00:25]} Nf8 {[%emt 0:00:37]} 37. Rd4 {[%emt 0:01:05]} Re8 {[%emt 0:01:24]} 38. Kf3 {[%emt 0:00:01]} Bxe5 {[%emt 0:01:52]} 39. Nxe5+ {[%emt 0:01:13]} Rxe5 {[%emt 0:00:05]} 40. Rd8 {[%emt 0:00:00]} Ne6 {[%emt 0:00:00]} 41. Ra8 {[%emt 0:00:09]} f5 {[%emt 0:14:35]} 42. Rxa7 {[%emt 0:04:30]} Re4 {[%emt 0:01:16]} 43. c3 {[%emt 0:04:11]} Rc4 {[%emt 0:00:05]} 44. Bd2 {[%emt 0:00:50]} c5 {[%emt 0:04:00]} 45. b5 {[%emt 0:03:15]} Re4 {[%emt 0:03:02]} 46. a4 {[%emt 0:01:19]} Re5 {[%emt 0:00:12]} 47. a5 {[%emt 0:01:47]} bxa5 {[%emt 0:00:39]} 48. Rxa5 {[%emt 0:03:12]} f4 {[%emt 0:05:25]} 49. Ra6 {[%emt 0:04:46]} Kf7 {[%emt 0:01:41]} 50. Ra2 {[%emt 0:05:25]} c4 {[%emt 0:00:56]} 51. h4 {[%emt 0:00:33]} gxh4 {[%emt 0:01:16]} 52. Bxf4 {[%emt 0:00:03]} Rxb5 {[%emt 0:01:07]} 53. Rh2 {[%emt 0:00:19]} Rb3 {[%emt 0:01:04]} 54. Be3 {[%emt 0:02:00]} Rxc3 {[%emt 0:00:24]} 55. Rxh4 {[%emt 0:00:02]} Rb3 {[%emt 0:02:33]} 56. Ke2 {[%emt 0:01:24]} Rb2+ {[%emt 0:01:28]} 57. Kd1 {[%emt 0:00:30]} Rb3 {[%emt 0:00:06]} 58. Ke2 {[%emt 0:00:12]} c5 {[%emt 0:00:36]} 59. g5 {[%emt 0:00:26]} Rb4 {[%emt 0:01:11]} 60. Re4 {[%emt 0:02:13]} c3 {[%emt 0:01:28]} 61. Rxb4 {[%emt 0:00:58]} cxb4 {[%emt 0:00:09]} 62. Kd3 {[%emt 0:00:02]} Nc7 {[%emt 0:00:47]} 63. Bc5 {[%emt 0:00:09]} Nd5 {[%emt 0:00:07]} 64. Bxb4 {[%emt 0:00:05]} Nxb4+ {[%emt 0:00:04]} 65. Kxc3 {[%emt 0:00:04]} 1/2-1/2

[Event "AUT Bundesliga 2019-20"]
[Site "Linz"]
[Date "2019.10.10"]
[Round "1.8"]
[White "Weiss, Christian"]
[Black "Bezold, Michael"]
[Result "1/2-1/2"]
[ECO "C41"]
[WhiteElo "2376"]
[BlackElo "2487"]
[Annotator "ChessBase"]
[PlyCount "60"]
[EventDate "2019.10.10"]
[EventType "team-tourn"]
[EventCountry "AUT"]
[SourceTitle "playchess.com"]
[Source "ChessBase"]
[SourceQuality "1"]
[TimeControl "40/5400+30:1800+30"]

1. d4 {[%emt 0:00:00]} d6 {[%emt 0:00:48]} 2. e4 {[%emt 0:00:10]} Nf6 {[%emt 0:00:16]} 3. Nc3 {[%emt 0:00:38]} e5 {[%emt 0:01:37]} 4. Nf3 {[%emt 0:01:35]} Nbd7 {[%emt 0:00:25]} 5. Bc4 {[%emt 0:01:30]} Be7 {[%emt 0:00:22]} 6. O-O {[%emt 0:00:23]} O-O {[%emt 0:00:11]} 7. Re1 {[%emt 0:03:17]} a6 {[%emt 0:01:47]} 8. a4 {[%emt 0:01:05]} b6 {[%emt 0:00:07]} 9. b3 {[%emt 0:16:45]} Bb7 {[%emt 0:01:56]} 10. Bb2 {[%emt 0:07:45]} c6 {[%emt 0:08:12]} 11. Bf1 {[%emt 0:10:27]} Re8 {[%emt 0:03:42]} 12. d5 {[%emt 0:09:52]} cxd5 {[%emt 0:10:16]} 13. Nxd5 {[%emt 0:04:30]} Nc5 {[%emt 0:03:28]} 14. Nxf6+ {[%emt 0:07:26]} Bxf6 {[%emt 0:00:18]} 15. Nd2 {[%emt 0:00:06]} Qc7 {[%emt 0:03:11]} 16. b4 {[%emt 0:07:43]} Ne6 {[%emt 0:04:08]} 17. a5 {[%emt 0:02:24]} Rad8 {[%emt 0:12:03]} 18. c4 {[%emt 0:04:07]} Nd4 {[%emt 0:09:25]} 19. Nb3 {[%emt 0:02:34]} Nxb3 {[%emt 0:02:15]} 20. Qxb3 {[%emt 0:00:05]} bxa5 {[%emt 0:00:35]} 21. Rxa5 {[%emt 0:01:29]} Rb8 {[%emt 0:01:22]} 22. Qe3 {[%emt 0:01:08]} h6 {[%emt 0:09:27]} 23. Bc3 {[%emt 0:02:01]} Bg5 {[%emt 0:02:22]} 24. Qd3 {[%emt 0:00:55]} Bd8 {[%emt 0:01:46]} 25. Ra2 {[%emt 0:02:54]} Qe7 {[%emt 0:02:34]} 26. Rd2 {[%emt 0:00:54]} Bc7 {[%emt 0:00:56]} 27. Qe3 {[%emt 0:02:01]} Bc8 {[%emt 0:03:21]} 28. Ra1 {[%emt 0:03:04]} Bb6 {[%emt 0:01:38]} 29. Qf3 {[%emt 0:02:33]} Bb7 {[%emt 0:06:08]} 30. Bd3 {[%emt 0:01:24]} Qc7 {[%emt 0:01:45]} 1/2-1/2

[Event "AUT Bundesliga 2019-20"]
[Site "Linz"]
[Date "2019.10.10"]
[Round "1.9"]
[White "Wagner, Dennis"]
[Black "Saric, Ante"]
[Result "1-0"]
[ECO "A30"]
[WhiteElo "2565"]
[BlackElo "2557"]
[Annotator "ChessBase"]
[PlyCount "83"]
[EventDate "2019.10.10"]
[EventType "team-tourn"]
[EventCountry "AUT"]
[SourceTitle "playchess.com"]
[Source "ChessBase"]
[SourceQuality "1"]
[TimeControl "40/5400+30:1800+30"]

1. c4 {[%emt 0:00:00]} c5 {[%emt 0:00:00]} 2. Nf3 {[%emt 0:00:00]} g6 {[%emt 0:00:05]} 3. e4 {[%emt 0:00:42]} Nc6 {[%emt 0:00:06]} 4. d4 {[%emt 0:00:05]} cxd4 {[%emt 0:00:05]} 5. Nxd4 {[%emt 0:00:06]} Nf6 {[%emt 0:00:06]} 6. Nc3 {[%emt 0:00:11]} d6 {[%emt 0:00:05]} 7. Be2 {[%emt 0:00:22]} Nxd4 {[%emt 0:00:07]} 8. Qxd4 {[%emt 0:00:09]} Bg7 {[%emt 0:00:03]} 9. Be3 {[%emt 0:01:06]} O-O {[%emt 0:00:07]} 10. Qd2 {[%emt 0:00:11]} Be6 {[%emt 0:00:18]} 11. Rc1 {[%emt 0:02:23]} Qa5 {[%emt 0:00:38]} 12. f3 {[%emt 0:01:04]} Rfc8 {[%emt 0:00:06]} 13. b3 {[%emt 0:00:32]} a6 {[%emt 0:00:05]} 14. Na4 {[%emt 0:00:54]} Qxd2+ {[%emt 0:00:06]} 15. Kxd2 {[%emt 0:00:10]} Nd7 {[%emt 0:00:05]} 16. g4 {[%emt 0:00:53]} f5 {[%emt 0:00:06]} 17. gxf5 {[%emt 0:00:32]} gxf5 {[%emt 0:00:06]} 18. Nc3 {[%emt 0:00:26]} fxe4 {[%emt 0:06:11]} 19. fxe4 {[%emt 0:00:18]} Ne5 {[%emt 0:19:43]} 20. Rhg1 {[%emt 0:12:08]} Kh8 {[%emt 0:04:54]} 21. Nd5 {[%emt 0:00:09]} Bxd5 {[%emt 0:01:52]} 22. exd5 {[%emt 0:00:36]} Rf8 {[%emt 0:15:59]} 23. Rcf1 {[%emt 0:23:06]} b5 {[%emt 0:15:54]} 24. Rxf8+ {[%emt 0:02:33]} Rxf8 {[%emt 0:07:24]} 25. cxb5 {[%emt 0:01:28]} axb5 {[%emt 0:00:05]} 26. a4 {[%emt 0:00:36]} bxa4 {[%emt 0:03:46]} 27. bxa4 {[%emt 0:00:03]} Ra8 {[%emt 0:01:28]} 28. Rb1 {[%emt 0:03:17]} Kg8 {[%emt 0:05:21]} 29. Bb5 {[%emt 0:04:52]} Kf7 {[%emt 0:03:38]} 30. Rc1 {[%emt 0:38:15]} Ng4 {[%emt 0:01:11]} 31. Rf1+ {[%emt 0:00:25]} Bf6 {[%emt 0:00:50]} 32. Bb6 {[%emt 0:03:53]} Nxh2 {[%emt 0:01:44]} 33. Rf4 {[%emt 0:02:55]} e5 {[%emt 0:01:56]} 34. dxe6+ {[%emt 0:01:44]} Kxe6 {[%emt 0:00:02]} 35. Kd3 {[%emt 0:00:11]} Bg5 {[%emt 0:03:59]} 36. Re4+ {[%emt 0:00:30]} Kf6 {[%emt 0:01:48]} 37. a5 {[%emt 0:00:57]} Nf3 {[%emt 0:00:42]} 38. Re8 {[%emt 0:00:34]} Ne5+ {[%emt 0:00:43]} 39. Kc3 {[%emt 0:00:21]} Rxe8 {[%emt 0:05:13]} 40. Bxe8 {[%emt 0:00:00]} Ke7 {[%emt 0:00:00]} 41. a6 {[%emt 0:02:09]} Bf6 {[%emt 0:04:55]} 42. Kb3 {[%emt 0:01:38]} 1-0

[Event "AUT Bundesliga 2019-20"]
[Site "Linz"]
[Date "2019.10.10"]
[Round "1.9"]
[White "Danin, Alexandre"]
[Black "Papp, Gabor"]
[Result "1-0"]
[ECO "B92"]
[WhiteElo "2515"]
[BlackElo "2587"]
[Annotator "ChessBase"]
[PlyCount "171"]
[EventDate "2019.10.10"]
[EventType "team-tourn"]
[EventCountry "AUT"]
[SourceTitle "playchess.com"]
[Source "ChessBase"]
[SourceQuality "1"]
[TimeControl "40/5400+30:1800+30"]

1. e4 {[%emt 0:00:00]} c5 {[%emt 0:00:00]} 2. Nf3 {[%emt 0:00:00]} d6 {[%emt 0:00:06]} 3. d4 {[%emt 0:00:07]} cxd4 {[%emt 0:00:06]} 4. Nxd4 {[%emt 0:00:07]} Nf6 {[%emt 0:00:05]} 5. Nc3 {[%emt 0:00:25]} a6 {[%emt 0:00:08]} 6. Be2 {[%emt 0:00:53]} e5 {[%emt 0:00:54]} 7. Nb3 {[%emt 0:00:10]} Be7 {[%emt 0:01:08]} 8. Bg5 {[%emt 0:00:47]} Be6 {[%emt 0:01:29]} 9. Bxf6 {[%emt 0:00:59]} Bxf6 {[%emt 0:00:09]} 10. Qd3 {[%emt 0:00:15]} Be7 {[%emt 0:01:44]} 11. Nd5 {[%emt 0:02:14]} Nd7 {[%emt 0:02:32]} 12. Rd1 {[%emt 0:06:17]} Bxd5 {[%emt 0:01:37]} 13. Qxd5 {[%emt 0:00:10]} Qc7 {[%emt 0:00:24]} 14. Qc4 {[%emt 0:27:52]} Qxc4 {[%emt 0:06:20]} 15. Bxc4 {[%emt 0:00:04]} Rc8 {[%emt 0:00:03]} 16. Bd3 {[%emt 0:01:24]} b5 {[%emt 0:03:43]} 17. c3 {[%emt 0:04:14]} Nb6 {[%emt 0:02:09]} 18. Ke2 {[%emt 0:06:10]} Bg5 {[%emt 0:15:33]} 19. Na1 {[%emt 0:04:24]} Ke7 {[%emt 0:01:12]} 20. Nc2 {[%emt 0:02:43]} Rhd8 {[%emt 0:02:11]} 21. g3 {[%emt 0:01:35]} h5 {[%emt 0:06:17]} 22. Rb1 {[%emt 0:12:50]} d5 {[%emt 0:02:50]} 23. exd5 {[%emt 0:03:22]} Nxd5 {[%emt 0:00:45]} 24. Bf5 {[%emt 0:08:03]} Rc5 {[%emt 0:12:59]} 25. Rhd1 {[%emt 0:02:57]} g6 {[%emt 0:03:01]} 26. Be4 {[%emt 0:01:06]} f5 {[%emt 0:07:47]} 27. Bxd5 {[%emt 0:00:09]} Rcxd5 {[%emt 0:00:02]} 28. Rxd5 {[%emt 0:02:57]} Rxd5 {[%emt 0:00:06]} 29. Ne3 {[%emt 0:00:33]} Rc5 {[%emt 0:02:55]} 30. Rd1 {[%emt 0:01:03]} Ke6 {[%emt 0:00:58]} 31. Nc2 {[%emt 0:05:47]} a5 {[%emt 0:00:35]} 32. Ne1 {[%emt 0:01:12]} Rc4 {[%emt 0:05:32]} 33. Nf3 {[%emt 0:00:10]} Be7 {[%emt 0:02:40]} 34. Nd2 {[%emt 0:00:34]} Rc8 {[%emt 0:01:38]} 35. Nf3 {[%emt 0:01:49]} b4 {[%emt 0:02:31]} 36. cxb4 {[%emt 0:01:39]} axb4 {[%emt 0:00:03]} 37. Ne1 {[%emt 0:01:43]} e4 {[%emt 0:08:43]} 38. Rd2 {[%emt 0:00:21]} Rc1 {[%emt 0:02:09]} 39. Rd1 {[%emt 0:01:11]} Rc7 {[%emt 0:00:38]} 40. Rd2 {[%emt 0:00:00]} Rc1 {[%emt 0:00:00]} 41. Rd1 {[%emt 0:01:37]} Rc8 {[%emt 0:13:00]} 42. Rd2 {[%emt 0:00:58]} Ra8 {[%emt 0:04:30]} 43. b3 {[%emt 0:00:26]} h4 {[%emt 0:00:55]} 44. Nc2 {[%emt 0:08:08]} Bg5 {[%emt 0:02:00]} 45. Ne3 {[%emt 0:00:38]} h3 {[%emt 0:01:19]} 46. Rc2 {[%emt 0:01:55]} f4 {[%emt 0:01:34]} 47. gxf4 {[%emt 0:02:22]} Bxf4 {[%emt 0:00:02]} 48. Nf1 {[%emt 0:00:07]} g5 {[%emt 0:00:13]} 49. Ng3 {[%emt 0:04:38]} e3 {[%emt 0:01:04]} 50. Kf3 {[%emt 0:01:02]} exf2 {[%emt 0:00:42]} 51. Rxf2 {[%emt 0:00:19]} Rh8 {[%emt 0:04:10]} 52. Re2+ {[%emt 0:02:41]} Kd5 {[%emt 0:00:19]} 53. Nf5 {[%emt 0:01:09]} Rf8 {[%emt 0:07:19]} 54. Kg4 {[%emt 0:01:04]} Rf6 {[%emt 0:00:06]} 55. Ng3 {[%emt 0:03:39]} Kd4 {[%emt 0:00:30]} 56. Re4+ {[%emt 0:03:17]} Kc5 {[%emt 0:02:55]} 57. Nh5 {[%emt 0:02:25]} Ra6 {[%emt 0:00:42]} 58. Nxf4 {[%emt 0:01:22]} gxf4 {[%emt 0:00:04]} 59. Rc4+ {[%emt 0:00:07]} Kd5 {[%emt 0:00:28]} 60. Rxf4 {[%emt 0:00:08]} Rxa2 {[%emt 0:00:49]} 61. Kxh3 {[%emt 0:00:08]} Kc5 {[%emt 0:00:08]} 62. Kg3 {[%emt 0:00:44]} Rc2 {[%emt 0:03:47]} 63. h4 {[%emt 0:00:58]} Rc3+ {[%emt 0:00:03]} 64. Rf3 {[%emt 0:00:02]} Kd4 {[%emt 0:00:12]} 65. Kg4 {[%emt 0:00:30]} Rc8 {[%emt 0:01:19]} 66. h5 {[%emt 0:03:13]} Rg8+ {[%emt 0:00:02]} 67. Kh4 {[%emt 0:00:05]} Rh8 {[%emt 0:00:03]} 68. Rh3 {[%emt 0:00:37]} Ke5 {[%emt 0:00:40]} 69. Rg3 {[%emt 0:00:30]} Kd4 {[%emt 0:00:20]} 70. Rf3 {[%emt 0:00:18]} Ke4 {[%emt 0:00:59]} 71. Rf7 {[%emt 0:00:42]} Rc8 {[%emt 0:01:01]} 72. Rb7 {[%emt 0:00:19]} Rc1 {[%emt 0:00:18]} 73. Kg5 {[%emt 0:00:54]} Rg1+ {[%emt 0:00:32]} 74. Kh6 {[%emt 0:00:07]} Kf5 {[%emt 0:00:08]} 75. Rxb4 {[%emt 0:01:13]} Kf6 {[%emt 0:00:02]} 76. Rf4+ {[%emt 0:00:15]} Ke6 {[%emt 0:00:19]} 77. Rf3 {[%emt 0:00:13]} Rg4 {[%emt 0:00:04]} 78. Kh7 {[%emt 0:00:28]} Ke7 {[%emt 0:00:06]} 79. h6 {[%emt 0:00:22]} Ke6 {[%emt 0:00:13]} 80. Kh8 {[%emt 0:00:26]} Ke7 {[%emt 0:00:03]} 81. Rf1 {[%emt 0:00:52]} Ke8 {[%emt 0:00:09]} 82. Rf5 {[%emt 0:00:31]} Ke7 {[%emt 0:00:04]} 83. h7 {[%emt 0:00:38]} Ke8 {[%emt 0:00:13]} 84. b4 {[%emt 0:00:23]} Ke7 {[%emt 0:00:19]} 85. b5 {[%emt 0:00:09]} Rg6 {[%emt 0:00:04]} 86. b6 {[%emt 0:00:26]} 1-0

[Event "AUT Bundesliga 2019-20"]
[Site "Linz"]
[Date "2019.10.10"]
[Round "1.9"]
[White "Berchtenbreiter, Maximilian"]
[Black "Knoll, Hermann"]
[Result "1-0"]
[ECO "C54"]
[WhiteElo "2467"]
[BlackElo "2336"]
[Annotator "ChessBase"]
[PlyCount "95"]
[EventDate "2019.10.10"]
[EventType "team-tourn"]
[EventCountry "AUT"]
[SourceTitle "playchess.com"]
[Source "ChessBase"]
[SourceQuality "1"]
[TimeControl "40/5400+30:1800+30"]

1. e4 {[%emt 0:00:00]} e5 {[%emt 0:00:00]} 2. Nf3 {[%emt 0:00:00]} Nc6 {[%emt 0:00:14]} 3. Bc4 {[%emt 0:00:00]} Bc5 {[%emt 0:02:44]} 4. c3 {[%emt 0:00:08]} Nf6 {[%emt 0:00:59]} 5. d3 {[%emt 0:00:07]} d6 {[%emt 0:00:47]} 6. h3 {[%emt 0:04:28]} O-O {[%emt 0:00:19]} 7. Bb3 {[%emt 0:04:10]} a6 {[%emt 0:00:48]} 8. Nbd2 {[%emt 0:00:28]} Ba7 {[%emt 0:00:41]} 9. Qe2 {[%emt 0:00:40]} Ne7 {[%emt 0:00:51]} 10. Nf1 {[%emt 0:06:20]} Ng6 {[%emt 0:01:18]} 11. g3 {[%emt 0:00:37]} c6 {[%emt 0:01:01]} 12. Be3 {[%emt 0:13:20]} Bxe3 {[%emt 0:02:18]} 13. Nxe3 {[%emt 0:00:14]} a5 {[%emt 0:00:35]} 14. Bc2 {[%emt 0:11:54]} h6 {[%emt 0:01:28]} 15. h4 {[%emt 0:00:58]} Re8 {[%emt 0:00:16]} 16. h5 {[%emt 0:04:25]} Nf8 {[%emt 0:01:04]} 17. O-O-O {[%emt 0:06:16]} d5 {[%emt 0:00:37]} 18. exd5 {[%emt 0:01:07]} Nxd5 {[%emt 0:02:32]} 19. d4 {[%emt 0:01:10]} exd4 {[%emt 0:00:45]} 20. Rxd4 {[%emt 0:00:30]} Qe7 {[%emt 0:10:47]} 21. Re4 {[%emt 0:01:44]} Be6 {[%emt 0:06:37]} 22. Nxd5 {[%emt 0:03:55]} cxd5 {[%emt 0:00:02]} 23. Re3 {[%emt 0:00:11]} b5 {[%emt 0:04:12]} 24. Qxb5 {[%emt 0:00:30]} Reb8 {[%emt 0:00:11]} 25. Qd3 {[%emt 0:00:09]} Qb7 {[%emt 0:00:19]} 26. b3 {[%emt 0:00:42]} a4 {[%emt 0:00:29]} 27. Rh4 {[%emt 0:03:35]} axb3 {[%emt 0:00:22]} 28. axb3 {[%emt 0:00:07]} Qe7 {[%emt 0:02:53]} 29. Nd4 {[%emt 0:07:10]} Ra1+ {[%emt 0:00:18]} 30. Kd2 {[%emt 0:00:11]} Qa3 {[%emt 0:00:15]} 31. Ke2 {[%emt 0:01:50]} Rc8 {[%emt 0:00:53]} 32. Qd2 {[%emt 0:14:31]} Bd7 {[%emt 0:01:22]} 33. Kf3 {[%emt 0:03:34]} Ra2 {[%emt 0:02:09]} 34. Kg2 {[%emt 0:02:26]} Ne6 {[%emt 0:03:48]} 35. Nxe6 {[%emt 0:00:26]} Bxe6 {[%emt 0:00:37]} 36. Ra4 {[%emt 0:01:21]} Rxc2 {[%emt 0:02:06]} 37. Qxc2 {[%emt 0:00:05]} Qc5 {[%emt 0:00:07]} 38. Qd3 {[%emt 0:00:34]} d4 {[%emt 0:00:21]} 39. Rxd4 {[%emt 0:00:34]} Qxh5 {[%emt 0:00:50]} 40. Rd8+ {[%emt 0:00:00]} Rxd8 {[%emt 0:00:00]} 41. Qxd8+ {[%emt 0:00:07]} Kh7 {[%emt 0:00:14]} 42. c4 {[%emt 0:00:49]} Qc5 {[%emt 0:03:53]} 43. Qd3+ {[%emt 0:00:14]} Kg8 {[%emt 0:00:39]} 44. Re2 {[%emt 0:01:19]} Qb6 {[%emt 0:01:14]} 45. Kg1 {[%emt 0:00:32]} g6 {[%emt 0:00:56]} 46. Qe3 {[%emt 0:00:22]} Qd6 {[%emt 0:02:12]} 47. Rd2 {[%emt 0:00:17]} Qe7 {[%emt 0:00:47]} 48. Qxh6 {[%emt 0:04:38]} 1-0